bitfinex/quotes_BTCUSD_20250604
["timestamp","ask_amount","ask_price","bid_price","bid_amount"]
[1749040288565,0.69952445,104910.0,104900.0,1.13693515]
[1749040288779,0.69952445,104910.0,104900.0,0.77117515]
[1749040289025,0.69952445,104910.0,104900.0,0.93129515]
[1749040289702,0.69952445,104910.0,104900.0,0.87251515]
[1749040289962,0.71552445,104910.0,104900.0,0.87251515]
[1749040290436,0.71552445,104910.0,104900.0,0.71239515]
[1749040290666,0.73102445,104910.0,104900.0,0.71239515]
[1749040290922,1.47050059,104910.0,104900.0,0.87251515]
[1749040291169,1.07102445,104910.0,104900.0,0.71239515]
[1749040291398,1.07102445,104910.0,104900.0,0.87247515]
[1749040292513,1.07102445,104910.0,104900.0,0.41239515]
[1749040292693,1.47050059,104910.0,104900.0,0.87247515]
[1749040293456,1.07102445,104910.0,104900.0,0.87247515]
[1749040294250,1.07102445,104910.0,104900.0,1.12115515]
[1749040296317,0.67154831,104910.0,104900.0,1.12115515]
[1749040296506,1.05552445,104910.0,104900.0,1.12115515]
[1749040297193,1.05552445,104910.0,104900.0,0.87247515]
[1749040297399,1.03952445,104910.0,104900.0,0.87247515]
[1749040297899,1.05522445,104910.0,104900.0,0.87247515]
[1749040298138,1.05522445,104910.0,104900.0,0.71239515]
[1749040298379,1.05522445,104910.0,104900.0,0.87247515]
[1749040298818,1.07182445,104910.0,104900.0,0.87247515]
[1749040300079,0.67234831,104910.0,104900.0,0.87247515]
[1749040300267,1.05522445,104910.0,104900.0,0.87247515]
[1749040301535,0.65574831,104910.0,104900.0,0.87247515]
[1749040301768,1.05522445,104910.0,104900.0,0.87247515]
[1749040302841,1.07082445,104910.0,104900.0,0.87247515]
[1749040304111,1.07082445,104910.0,104900.0,1.12119515]
[1749040304551,1.07082445,104910.0,104900.0,1.12115515]
[1749040304772,1.47030059,104910.0,104900.0,0.45539515]
[1749040304992,1.47937361,104910.0,104900.0,0.60543515]
[1749040306295,1.47030059,104910.0,104900.0,0.60543515]
[1749040306716,0.64004831,104910.0,104900.0,0.56243515]
[1749040306934,1.05472445,104910.0,104900.0,0.56243515]
[1749040307145,1.05472445,104910.0,104900.0,0.55743515]
[1749040308047,1.45420059,104910.0,104900.0,0.55743515]
[1749040309420,1.05472445,104910.0,104900.0,0.55743515]
[1749040310066,1.47070059,104910.0,104900.0,0.39739515]
[1749040310300,1.47070059,104910.0,104900.0,0.55743515]
[1749040310512,1.47070059,104910.0,104900.0,0.39739515]
[1749040310748,1.47070059,104910.0,104900.0,0.55743515]
[1749040312101,1.47070059,104910.0,104900.0,0.39739515]
[1749040312327,1.47070059,104910.0,104900.0,0.55743515]
[1749040313961,1.47070059,104910.0,104900.0,0.39739515]
[1749040314187,1.47070059,104910.0,104900.0,0.80607515]
[1749040315283,1.47059027,104910.0,104900.0,0.80607515]
[1749040317537,1.47966707,104910.0,104900.0,0.80603515]
[1749040318845,1.47966817,104910.0,104900.0,0.80603515]
[1749040319277,1.47966813,104910.0,104900.0,0.80603515]
[1749040319475,1.46316813,104910.0,104900.0,0.55739515]
[1749040320237,1.47886813,104910.0,104900.0,0.55739515]
[1749040320447,1.46316813,104910.0,104900.0,0.55739515]
[1749040321309,1.46317286,104910.0,104900.0,0.55739515]
[1749040322784,1.47837286,104910.0,104900.0,0.55739515]
[1749040323627,1.46317286,104910.0,104900.0,0.55739515]
[1749040324036,1.46317286,104910.0,104900.0,0.80603515]
[1749040325733,1.8789974,104910.0,104900.0,0.39739515]
[1749040325950,1.47957642,104910.0,104900.0,0.2884943]
[1749040326160,1.89035509,104910.0,104900.0,0.4106]
[1749040326373,1.89413238,104910.0,104900.0,0.4106]
[1749040326633,1.89413238,104910.0,104900.0,0.25064]
[1749040326931,1.89413238,104910.0,104900.0,0.4096]
[1749040327138,1.89613238,104910.0,104900.0,0.42414085]
[1749040327348,1.89613238,104910.0,104900.0,0.4096]
[1749040327799,1.90748348,104910.0,104900.0,0.42414085]
[1749040328011,1.90748348,104910.0,104900.0,0.22018085]
[1749040328259,1.90748348,104910.0,104900.0,0.42318085]
[1749040328496,1.90848348,104910.0,104900.0,0.42318085]
[1749040328926,1.8933485,104910.0,104900.0,0.42318085]
[1749040329341,1.49426154,104910.0,104900.0,0.42318085]
[1749040329605,1.49424088,104910.0,104900.0,0.22018085]
[1749040330021,1.49424088,104910.0,104900.0,0.42314085]
[1749040331760,1.49424088,104910.0,104880.0,0.01454085]
[1749040331761,0.0152,104890.0,104880.0,0.01454085]
[1749040331970,0.81437598,104890.0,104880.0,0.27035515]
[1749040332184,0.41478799,104890.0,104880.0,0.27035515]
[1749040333081,0.41478799,104890.0,104880.0,0.27235515]
[1749040333536,0.44274958,104890.0,104880.0,0.27235515]
[1749040334176,0.02796159,104890.0,104880.0,0.52103515]
[1749040334391,0.85763757,104890.0,104880.0,0.36107515]
[1749040334650,0.82967598,104890.0,104880.0,0.36107515]
[1749040334874,0.82967598,104890.0,104880.0,0.31535515]
[1749040335766,0.81447598,104890.0,104880.0,0.31535515]
[1749040337853,0.41488799,104890.0,104880.0,0.31535515]
[1749040338596,0.44313308,104890.0,104880.0,0.31535515]
[1749040338817,0.44313308,104890.0,104880.0,0.27235515]
[1749040339235,0.42783308,104890.0,104880.0,0.27235515]
[1749040340145,0.02824509,104890.0,104880.0,0.27235515]
[1749040340382,0.42783308,104890.0,104880.0,0.27235515]
[1749040340628,0.39958799,104890.0,104880.0,0.27235515]
[1749040341695,0.39958799,104890.0,104880.0,0.28885515]
[1749040343183,0.42823198,104890.0,104880.0,0.28885515]
[1749040344225,0.42823198,104890.0,104880.0,0.52095515]
[1749040344841,0.62823198,104890.0,104880.0,0.52095515]
[1749040345056,1.06041997,104890.0,104880.0,0.36099515]
[1749040345281,1.06948181,104890.0,104880.0,0.42506085]
[1749040345514,1.06948181,104890.0,104880.0,0.2506]
[1749040345515,1.40948181,104890.0,104880.0,0.2506]
[1749040345735,1.40948181,104890.0,104880.0,0.42406085]
[1749040345957,1.40948073,104890.0,104880.0,0.42306085]
[1749040346170,1.41048073,104890.0,104880.0,0.42306085]
[1749040346372,1.41048073,104890.0,104880.0,0.43198975]
[1749040346578,1.40948073,104890.0,104880.0,0.43198975]
[1749040346812,1.40948073,104890.0,104880.0,0.42306085]
[1749040347066,1.40948073,104890.0,104880.0,0.26314085]
[1749040347316,1.40948073,104890.0,104880.0,0.42306085]
[1749040347542,1.40948073,104890.0,104880.0,0.43198976]
[1749040347780,1.41048073,104890.0,104880.0,0.42306085]
[1749040348016,1.41248073,104890.0,104880.0,0.42306085]
[1749040349941,1.41248155,104890.0,104880.0,0.42306085]
[1749040350618,1.41248155,104890.0,104880.0,0.43198975]
[1749040350882,1.41248155,104890.0,104880.0,0.42306085]
[1749040351124,1.41248155,104890.0,104880.0,0.43198972]
[1749040351350,1.41248155,104890.0,104880.0,0.42306085]
[1749040351567,1.41248155,104890.0,104880.0,0.43198975]
[1749040352039,1.41248155,104890.0,104880.0,0.42306085]
[1749040352751,1.41248155,104890.0,104880.0,0.43198974]
[1749040352993,1.41248155,104890.0,104880.0,0.42306085]
[1749040353713,1.41248155,104890.0,104880.0,0.43198971]
[1749040353933,1.41248155,104890.0,104880.0,0.42306085]
[1749040354148,1.41248155,104890.0,104880.0,0.43198971]
[1749040354354,1.41248155,104890.0,104880.0,0.42306085]
[1749040355002,1.41248155,104890.0,104880.0,0.43198971]
[1749040356282,1.41248155,104890.0,104880.0,0.44091856]
[1749040358006,1.41248155,104890.0,104880.0,0.44984742]
[1749040358237,1.41249265,104890.0,104880.0,0.44091856]
[1749040358884,1.41249265,104890.0,104880.0,0.4498474]
[1749040359103,1.41249265,104890.0,104880.0,0.44091856]
[1749040359308,1.41249265,104890.0,104880.0,0.4498474]
[1749040359523,1.41249265,104890.0,104880.0,0.44091856]
[1749040362401,1.41249065,104890.0,104880.0,0.44087856]
[1749040362616,1.41249065,104890.0,104880.0,0.4498074]
[1749040362828,1.41249065,104890.0,104880.0,0.44980743]
[1749040363046,1.41249065,104890.0,104880.0,0.44087856]
[1749040363507,1.41249065,104890.0,104880.0,0.28099856]
[1749040363724,1.41249065,104890.0,104880.0,0.42633771]
[1749040363966,1.41249065,104890.0,104880.0,0.43526658]
[1749040364825,1.41249065,104890.0,104880.0,0.4441955]
[1749040365048,1.41249065,104890.0,104880.0,0.43526658]
[1749040365282,1.41249065,104890.0,104880.0,0.40848]
[1749040365500,1.423829,104890.0,104880.0,0.40848]
[1749040365707,0.3725,104880.0,104850.0,0.6301]
[1749040365924,0.78115867,104880.0,104860.0,0.27027515]
[1749040366140,0.78115867,104880.0,104860.0,0.28537515]
[1749040366826,0.78115867,104880.0,104870.0,0.17442085]
[1749040367242,1.18074666,104880.0,104870.0,0.17442085]
[1749040369025,1.18074666,104880.0,104870.0,0.01454085]
[1749040369277,1.18074666,104880.0,104870.0,0.17442085]
[1749040369513,1.18174666,104880.0,104870.0,0.17442085]
[1749040370375,1.18174304,104880.0,104870.0,0.17442085]
[1749040373133,0.78215505,104880.0,104870.0,0.17442085]
[1749040373353,1.18174304,104880.0,104870.0,0.17442085]
[1749040374044,1.18174304,104880.0,104870.0,0.38014085]
[1749040374276,1.18174304,104880.0,104870.0,0.42302085]
[1749040376267,1.16554304,104880.0,104870.0,0.42302085]
[1749040377379,1.58043103,104880.0,104870.0,0.20572]
[1749040377623,1.66797608,104880.0,104870.0,0.00892981]
[1749040377839,1.65982031,104880.0,104850.0,0.0166]
[1749040378055,1.13917598,104860.0,104850.0,0.0166]
[1749040378285,1.14824304,104860.0,104850.0,0.0166]
[1749040378509,1.14824441,104860.0,104850.0,0.0166]
[1749040378936,1.14824441,104860.0,104850.0,0.17644]
[1749040379363,1.54877683,104860.0,104850.0,0.15984]
[1749040379571,1.54877683,104860.0,104850.0,0.15988826]
[1749040379875,1.54877683,104860.0,104850.0,0.17442911]
[1749040381222,1.5487691,104860.0,104850.0,0.17442911]
[1749040381447,1.148877,104860.0,104850.0,0.17442911]
[1749040383020,1.165477,104860.0,104850.0,0.01458911]
[1749040383248,1.165477,104860.0,104850.0,0.17442911]
[1749040384121,1.165477,104860.0,104850.0,0.42306911]
[1749040385404,1.14886958,104860.0,104850.0,0.42306911]
[1749040386066,1.17976958,104860.0,104850.0,0.26322911]
[1749040386314,0.3564,104850.0,104830.0,0.3327]
[1749040386535,0.76535975,104850.0,104840.0,0.40848]
[1749040387653,1.56517605,104850.0,104830.0,0.0327]
[1749040387875,1.56517605,104850.0,104820.0,0.32357838]
[1749040387876,0.34,104830.0,104820.0,0.35467838]
[1749040388129,1.1398163,104830.0,104820.0,0.45053268]
[1749040388385,1.1305264,104830.0,104820.0,0.45053268]
[1749040388606,0.73061825,104830.0,104820.0,0.45053268]
[1749040388876,0.72761825,104830.0,104820.0,0.46507353]
[1749040389112,1.1275264,104830.0,104820.0,0.62491353]
[1749040389344,1.15549055,104830.0,104820.0,0.60133515]
[1749040389575,1.15549055,104830.0,104820.0,0.60233515]
[1749040389813,1.4275264,104830.0,104820.0,0.60233515]
[1749040390045,1.02761825,104830.0,104820.0,0.60233515]
[1749040390281,1.0432329,104830.0,104820.0,0.60233515]
[1749040390520,1.0432329,104830.0,104820.0,0.41239515]
[1749040390521,1.44314105,104830.0,104820.0,0.41239515]
[1749040390983,1.44314105,104830.0,104820.0,0.57223515]
[1749040391453,1.4369473,104830.0,104820.0,0.58673515]
[1749040391926,1.4379473,104830.0,104820.0,0.58573515]
[1749040392171,1.4379473,104830.0,104820.0,0.59466845]
[1749040392410,1.4379473,104830.0,104820.0,0.58573515]
[1749040392647,1.4379473,104830.0,104820.0,0.57916846]
[1749040392864,1.4379473,104830.0,104820.0,0.57023515]
[1749040393132,1.4379473,104830.0,104820.0,0.57916846]
[1749040393592,1.4379473,104830.0,104820.0,0.58810177]
[1749040393593,0.638131,104830.0,104820.0,0.58810177]
[1749040393811,1.4379473,104830.0,104820.0,0.57916846]
[1749040394066,1.4379473,104830.0,104810.0,0.31865808]
[1749040394067,2.06946144,104830.0,104810.0,0.31865808]
[1749040394309,2.06946144,104830.0,104780.0,0.01236096]
[1749040394310,0.0152,104800.0,104780.0,0.01236096]
[1749040394563,0.77617857,104790.0,104780.0,0.01236096]
[1749040394810,0.3558,104780.0,104770.0,0.00280069]
[1749040395020,1.1556163,104770.0,104760.0,1.09089188]
[1749040395302,1.1556163,104770.0,104760.0,1.29669188]
[1749040395303,1.16464624,104770.0,104760.0,1.29669188]
[1749040395769,0.36497457,104770.0,104760.0,1.49937188]
[1749040395990,0.34917457,104770.0,104760.0,1.49937188]
[1749040396207,0.34917457,104770.0,104760.0,1.59522618]
[1749040396208,0.35551246,104770.0,104760.0,1.59522618]
[1749040396459,0.75542061,104770.0,104760.0,1.60976703]
[1749040396720,0.75542061,104770.0,104760.0,1.40396703]
[1749040396934,0.35551246,104770.0,104760.0,1.36112703]
[1749040397196,0.35551246,104770.0,104760.0,1.20128703]
[1749040397197,0.75542061,104770.0,104760.0,1.20128703]
[1749040397430,0.75542061,104770.0,104760.0,0.43344169]
[1749040397431,1.82037246,104770.0,104760.0,0.43344169]
[1749040397624,1.31037093,104770.0,104760.0,0.37449196]
[1749040397844,1.34266102,104770.0,104760.0,0.53449196]
[1749040398063,1.34266102,104770.0,104760.0,0.37449196]
[1749040398064,1.74256917,104770.0,104760.0,0.37449196]
[1749040398289,1.86496709,104770.0,104740.0,0.000955]
[1749040398516,1.1398163,104750.0,104740.0,0.000955]
[1749040398783,1.1398163,104750.0,104740.0,0.160955]
[1749040398784,1.2356706,104750.0,104740.0,0.160955]
[1749040399076,1.1398163,104750.0,104740.0,0.160955]
[1749040399298,1.1398163,104750.0,104740.0,0.000955]
[1749040399746,1.1398163,104750.0,104740.0,0.161195]
[1749040400611,1.1408163,104750.0,104740.0,0.161195]
[1749040400829,1.1428163,104750.0,104740.0,0.161195]
[1749040401057,0.74290815,104750.0,104740.0,0.161155]
[1749040401528,0.40290815,104750.0,104740.0,0.17569585]
[1749040402190,0.74290815,104750.0,104740.0,0.17569585]
[1749040403356,0.74290815,104750.0,104740.0,0.01549585]
[1749040403588,0.74290815,104750.0,104740.0,0.17569585]
[1749040404293,0.74290815,104750.0,104740.0,0.42445585]
[1749040405219,0.343,104750.0,104740.0,0.42445585]
[1749040405932,0.343,104750.0,104740.0,0.53561015]
[1749040406615,0.543,104750.0,104740.0,0.53561015]
[1749040406805,0.543,104750.0,104740.0,0.53541015]
[1749040407957,0.543,104750.0,104740.0,0.32949015]
[1749040408612,0.52750455,104750.0,104740.0,0.32949015]
[1749040409706,0.52750455,104750.0,104740.0,0.32945015]
[1749040409915,0.52750455,104750.0,104740.0,0.33838978]
[1749040410126,0.52750455,104750.0,104740.0,0.33838977]
[1749040410338,0.52750455,104750.0,104740.0,0.32945015]
[1749040411484,0.52750455,104750.0,104740.0,0.33838977]
[1749040411697,0.52750455,104750.0,104740.0,0.28661015]
[1749040412175,0.52750455,104750.0,104740.0,0.60211015]
[1749040412397,0.52750455,104750.0,104740.0,0.61104943]
[1749040412620,0.52750455,104750.0,104740.0,0.60211015]
[1749040413715,0.52750455,104750.0,104740.0,0.60411015]
[1749040414151,0.52750455,104750.0,104740.0,0.93531015]
[1749040414393,0.2,104750.0,104740.0,0.85295015]
[1749040414611,0.2,104750.0,104740.0,1.15295015]
[1749040414829,0.2,104750.0,104740.0,1.16188856]
[1749040415035,0.2,104750.0,104740.0,1.15295015]
[1749040415261,0.54,104750.0,104740.0,1.3040183]
[1749040415475,0.54,104750.0,104740.0,0.90411015]
[1749040416361,0.54,104750.0,104740.0,1.3040183]
[1749040417011,0.54,104750.0,104740.0,1.31295648]
[1749040417230,0.54,104750.0,104740.0,1.3040183]
[1749040418141,0.54,104750.0,104740.0,1.31295645]
[1749040418646,0.19070433,104750.0,104740.0,1.3040183]
[1749040418879,0.19070433,104750.0,104740.0,1.31295625]
[1749040419103,0.17521198,104750.0,104740.0,1.3040183]
[1749040419574,0.17521198,104750.0,104740.0,1.1440583]
[1749040419793,0.17521198,104750.0,104740.0,1.3040183]
[1749040420012,0.17521198,104750.0,104740.0,1.31295612]
[1749040420233,0.17521198,104750.0,104740.0,1.3040183]
[1749040420462,0.17521198,104750.0,104740.0,1.31295596]
[1749040420687,0.17521198,104750.0,104740.0,1.3040183]
[1749040421137,0.17521198,104750.0,104740.0,1.7040183]
[1749040421809,0.17521198,104750.0,104740.0,1.71295574]
[1749040422033,0.17521198,104750.0,104740.0,1.30411015]
[1749040422286,0.17521198,104750.0,104740.0,1.7040183]
[1749040422981,0.17521198,104750.0,104740.0,1.71295572]
[1749040423203,0.17521198,104750.0,104740.0,1.7040183]
[1749040423637,0.16901537,104750.0,104740.0,1.7040183]
[1749040423851,0.16901537,104750.0,104740.0,1.71295572]
[1749040424073,0.16901537,104750.0,104740.0,1.9922983]
[1749040424289,0.16901537,104750.0,104740.0,2.0351783]
[1749040424721,0.16901537,104750.0,104740.0,1.9528183]
[1749040425166,0.16901537,104750.0,104740.0,1.7468983]
[1749040425593,0.16901537,104750.0,104740.0,1.7040183]
[1749040425807,0.16901537,104750.0,104740.0,1.55299554]
[1749040426071,0.16901537,104750.0,104740.0,1.72189221]
[1749040426307,0.16901537,104750.0,104740.0,1.31304729]
[1749040426524,0.16901537,104750.0,104740.0,1.55299544]
[1749040426747,0.16901537,104750.0,104740.0,1.72089201]
[1749040426961,0.16901537,104750.0,104740.0,1.71095544]
[1749040427213,0.16901537,104750.0,104740.0,1.7268923]
[1749040427428,0.16901537,104750.0,104740.0,1.71795544]
[1749040428105,0.16901537,104750.0,104740.0,1.55799544]
[1749040428750,0.15972097,104750.0,104740.0,1.72685236]
[1749040428963,0.15972097,104750.0,104740.0,1.71391544]
[1749040429178,0.1442303,104750.0,104740.0,1.71391544]
[1749040429395,0.1442303,104750.0,104740.0,1.71691544]
[1749040429609,0.1442303,104750.0,104740.0,1.72585228]
[1749040429846,0.1442303,104750.0,104740.0,1.71691544]
[1749040430272,0.1442303,104750.0,104740.0,1.72585227]
[1749040430488,0.1442303,104750.0,104740.0,1.71691544]
[1749040430988,0.1442303,104750.0,104740.0,1.72585227]
[1749040431193,0.1442303,104750.0,104740.0,1.72585226]
[1749040431406,0.1442303,104750.0,104740.0,1.71691544]
[1749040432287,0.1442303,104750.0,104740.0,1.72585226]
[1749040432526,0.1442303,104750.0,104740.0,1.71691544]
[1749040432747,0.1442303,104750.0,104740.0,1.72585226]
[1749040434099,0.1442303,104750.0,104740.0,2.06590908]
[1749040434309,0.1442303,104750.0,104740.0,1.85421226]
[1749040434535,0.1442303,104750.0,104740.0,2.05697226]
[1749040434758,0.1442303,104750.0,104740.0,2.06590907]
[1749040435255,0.1442303,104750.0,104740.0,2.05697226]
[1749040435479,0.1442303,104750.0,104740.0,2.06590905]
[1749040435704,0.1442303,104750.0,104740.0,1.32594411]
[1749040435926,0.1442303,104750.0,104740.0,1.72585226]
[1749040436380,0.1442303,104750.0,104740.0,1.73478906]
[1749040438854,0.13493603,104750.0,104740.0,1.73478906]
[1749040439301,0.11944558,104750.0,104740.0,1.73478906]
[1749040441774,0.11944558,104750.0,104740.0,1.76341506]
[1749040444122,0.02071779,104750.0,104740.0,2.46208321]
[1749040444352,0.00752215,104750.0,104740.0,2.90228321]
[1749040444583,0.00752215,104750.0,104740.0,2.85208321]
[1749040444813,0.00752215,104750.0,104740.0,2.60332321]
[1749040445516,0.0178552,104770.0,104760.0,0.64544085]
[1749040445742,0.0178552,104770.0,104760.0,1.72491405]
[1749040445968,0.0178552,104770.0,104760.0,2.02491405]
[1749040446214,0.0178552,104770.0,104760.0,2.15353405]
[1749040446454,0.0178552,104770.0,104760.0,2.45353405]
[1749040446677,0.0178552,104770.0,104760.0,2.59353405]
[1749040447350,0.0178552,104770.0,104760.0,1.79371775]
[1749040447574,0.0178552,104770.0,104760.0,2.59353405]
[1749040447805,0.00243844,104770.0,104760.0,2.59353405]
[1749040448262,0.0123,104780.0,104770.0,0.446249]
[1749040448494,0.0123,104780.0,104770.0,0.5421033]
[1749040448949,0.0123,104780.0,104770.0,0.9421033]
[1749040449783,0.0123,104780.0,104770.0,1.0227173]
[1749040450075,0.0123,104780.0,104770.0,1.0267173]
[1749040450309,0.0123,104780.0,104770.0,1.05461988]
[1749040450543,0.0123,104780.0,104770.0,0.65471173]
[1749040450770,0.0123,104780.0,104770.0,1.21445988]
[1749040451704,0.0123,104780.0,104770.0,1.46445988]
[1749040451928,0.0123,104780.0,104770.0,1.4370573]
[1749040453550,0.01771745,104800.0,104790.0,0.61454085]
[1749040453770,0.01771745,104800.0,104790.0,1.70205145]
[1749040454268,0.01771745,104800.0,104790.0,2.37934145]
[1749040454701,0.01771745,104800.0,104790.0,2.13066145]
[1749040455167,0.34,104820.0,104810.0,1.014449]
[1749040455414,0.43184096,104830.0,104820.0,0.01454085]
[1749040455651,0.41594096,104830.0,104820.0,0.11039515]
[1749040455883,0.17594096,104850.0,104830.0,0.61454085]
[1749040456125,0.19244096,104850.0,104840.0,0.67248774]
[1749040456344,0.10014504,104850.0,104840.0,0.9701033]
[1749040456949,0.10014504,104850.0,104840.0,0.6701033]
[1749040457388,0.10014504,104850.0,104840.0,0.68561337]
[1749040457831,0.10014504,104850.0,104840.0,0.31459215]
[1749040458025,0.10014504,104850.0,104840.0,0.29879215]
[1749040458764,0.10214504,104850.0,104840.0,0.29879215]
[1749040459213,0.10014504,104850.0,104840.0,0.29879215]
[1749040459451,0.10114504,104850.0,104840.0,0.29979215]
[1749040459677,0.10114504,104850.0,104840.0,1.11521037]
[1749040459897,0.10114504,104850.0,104840.0,1.13121037]
[1749040460614,0.10114504,104850.0,104840.0,0.69975215]
[1749040460845,0.11704504,104850.0,104840.0,0.83999215]
[1749040461065,0.11704504,104850.0,104840.0,0.53999215]
[1749040461289,0.11704504,104850.0,104840.0,0.69975215]
[1749040461526,0.11704504,104850.0,104840.0,0.99975215]
[1749040461748,0.11704504,104850.0,104840.0,0.69975215]
[1749040461981,0.11704504,104850.0,104840.0,0.9566143]
[1749040462432,0.11704504,104850.0,104840.0,0.97115515]
[1749040463373,0.11704504,104850.0,104840.0,0.81139515]
[1749040463593,0.11704504,104850.0,104840.0,0.97115515]
[1749040464282,0.11704504,104850.0,104840.0,1.30199515]
[1749040464993,0.11704504,104850.0,104840.0,1.01715515]
[1749040465220,0.10114504,104850.0,104840.0,1.21967515]
[1749040465668,0.10114504,104850.0,104840.0,0.97111515]
[1749040465889,0.10114504,104850.0,104840.0,0.99971515]
[1749040469827,0.10114504,104850.0,104840.0,1.41573337]
[1749040470084,0.10114504,104850.0,104840.0,1.43153337]
[1749040474200,0.10114504,104850.0,104840.0,1.76229337]
[1749040474870,0.10114504,104850.0,104840.0,1.7913055]
[1749040475372,0.10114504,104850.0,104840.0,1.4605455]
[1749040475618,0.10114504,104850.0,104840.0,2.25016372]
[1749040475838,0.08998678,104850.0,104840.0,1.8505455]
[1749040476301,0.08998678,104850.0,104840.0,1.9507455]
[1749040477696,0.06598678,104850.0,104840.0,2.35036372]
[1749040478131,0.04220928,104850.0,104840.0,2.35036372]
[1749040478590,0.01452436,104850.0,104840.0,2.34936372]
[1749040478815,0.01452436,104850.0,104840.0,2.39936372]
[1749040479039,0.01452436,104850.0,104840.0,2.40436372]
[1749040479250,0.09214096,104890.0,104880.0,0.61454085]
[1749040479476,0.09228586,104890.0,104880.0,0.87007515]
[1749040480608,0.09228586,104890.0,104880.0,0.89866415]
[1749040480836,0.0163449,104890.0,104880.0,0.91271691]
[1749040481272,0.0001449,104890.0,104880.0,0.91271691]
[1749040482358,0.0041449,104890.0,104880.0,0.91271691]
[1749040483243,0.0194449,104890.0,104880.0,0.75303691]
[1749040483478,0.0194449,104890.0,104880.0,1.0958543]
[1749040483479,0.43513681,104890.0,104880.0,1.0958543]
[1749040483731,0.43513681,104890.0,104880.0,0.71039515]
[1749040483922,0.43113681,104890.0,104880.0,0.87003515]
[1749040484145,0.0327449,104890.0,104880.0,1.20071515]
[1749040484365,0.0327449,104890.0,104880.0,1.11847515]
[1749040484624,0.0327449,104890.0,104880.0,0.91607515]
[1749040484852,0.0327449,104890.0,104880.0,1.11847515]
[1749040488075,0.0327449,104890.0,104880.0,0.71039515]
[1749040488294,0.0327449,104890.0,104880.0,0.86999515]
[1749040491650,0.0327449,104890.0,104880.0,0.71039515]
[1749040491866,0.0327449,104890.0,104880.0,0.86999515]
[1749040492103,0.7722126,104890.0,104880.0,0.11039515]
[1749040492537,0.7722126,104890.0,104880.0,0.26999515]
[1749040493430,0.3727449,104890.0,104880.0,0.26999515]
[1749040493877,0.3727449,104890.0,104870.0,0.6]
[1749040494102,0.3411449,104890.0,104880.0,0.408]
[1749040494540,0.3728449,104890.0,104880.0,0.408]
[1749040494760,0.3718449,104890.0,104880.0,0.408]
[1749040495944,0.0318449,104890.0,104880.0,0.408]
[1749040497028,0.4313126,104890.0,104880.0,0.408]
[1749040497469,0.4323126,104890.0,104880.0,0.408]
[1749040498573,0.4006126,104890.0,104870.0,0.3958543]
[1749040498808,0.0316,104880.0,104870.0,0.3958543]
[1749040499031,0.0316,104880.0,104870.0,0.5981743]
[1749040499930,0.0316,104880.0,104870.0,0.5564143]
[1749040500637,0.0316,104880.0,104870.0,0.11139515]
[1749040500638,0.4310677,104880.0,104870.0,0.11139515]
[1749040500869,0.4310677,104880.0,104870.0,0.01554085]
[1749040501094,0.4310677,104880.0,104870.0,0.17510085]
[1749040501320,0.7710677,104880.0,104870.0,0.001]
[1749040501563,0.78013215,104880.0,104870.0,0.16056]
[1749040502523,1.27545415,104880.0,104870.0,0.001]
[1749040502755,1.28777789,104880.0,104870.0,0.16056]
[1749040502994,1.28677789,104880.0,104870.0,0.16056]
[1749040503245,0.0317,104870.0,104850.0,0.02345473]
[1749040503477,0.7712677,104860.0,104850.0,0.02345473]
[1749040503709,0.0318,104850.0,104840.0,0.3]
[1749040503941,0.0318,104850.0,104840.0,0.41039515]
[1749040504181,0.0318,104850.0,104840.0,0.65879515]
[1749040504426,0.0318,104850.0,104840.0,0.81835515]
[1749040505636,0.0153,104850.0,104840.0,0.81835515]
[1749040505865,0.0163,104850.0,104840.0,0.81835515]
[1749040506560,0.001,104850.0,104840.0,0.86995515]
[1749040507050,0.0173,104850.0,104840.0,0.86995515]
[1749040508919,0.0338,104850.0,104840.0,0.86995515]
[1749040509383,0.43360721,104850.0,104840.0,0.86995515]
[1749040509639,0.41710721,104850.0,104840.0,0.86995515]
[1749040509865,0.0173,104850.0,104840.0,0.86995515]
[1749040511464,0.001,104850.0,104840.0,0.86995515]
[1749040511684,0.001,104850.0,104840.0,0.88645515]
[1749040512163,0.001,104850.0,104840.0,0.90165515]
[1749040512402,0.001,104850.0,104840.0,0.88645515]
[1749040512628,0.001,104850.0,104840.0,0.88649515]
[1749040514266,0.001,104850.0,104840.0,1.21721515]
[1749040514498,0.001,104850.0,104840.0,1.51721515]
[1749040514777,0.001,104850.0,104840.0,1.43493515]
[1749040514997,0.001,104850.0,104840.0,1.15053515]
[1749040515230,0.001,104850.0,104840.0,0.94481515]
[1749040515934,0.001,104850.0,104840.0,0.90209515]
[1749040516159,0.001,104850.0,104840.0,1.30190236]
[1749040516610,0.001,104850.0,104840.0,1.33050136]
[1749040517089,0.001,104850.0,104840.0,1.33150136]
[1749040517342,0.001,104850.0,104840.0,0.93169415]
[1749040517570,0.41520721,104870.0,104860.0,0.6]
[1749040517806,0.41520721,104870.0,104860.0,0.8554143]
[1749040518733,0.39980721,104870.0,104860.0,0.8554143]
[1749040519445,0.77150721,104880.0,104870.0,0.01454085]
[1749040519681,0.77150721,104880.0,104870.0,0.11039515]
[1749040519901,0.78480265,104880.0,104870.0,0.11039515]
[1749040520329,0.77150721,104880.0,104870.0,0.11039515]
[1749040520808,0.77550721,104880.0,104870.0,0.11039515]
[1749040521025,0.43550721,104880.0,104870.0,0.11039515]
[1749040521266,0.77550721,104880.0,104870.0,0.11039515]
[1749040521712,0.43550721,104880.0,104870.0,0.11039515]
[1749040521923,0.42010721,104880.0,104870.0,0.11039515]
[1749040523015,0.40380721,104880.0,104870.0,0.11039515]
[1749040523452,0.004,104880.0,104870.0,0.11039515]
[1749040524117,0.004,104880.0,104870.0,0.35879515]
[1749040524587,0.004,104880.0,104870.0,0.65879515]
[1749040524809,0.004,104880.0,104870.0,0.45307515]
[1749040525029,0.004,104880.0,104870.0,0.75307515]
[1749040525238,0.004,104880.0,104870.0,0.45307515]
[1749040525681,0.004,104880.0,104870.0,0.41039515]
[1749040526897,0.004,104880.0,104870.0,0.71039515]
[1749040527811,0.004,104880.0,104870.0,0.72669515]
[1749040528269,0.004,104880.0,104870.0,0.74269515]
[1749040528522,0.004,104880.0,104870.0,0.72669515]
[1749040530131,0.004,104880.0,104870.0,0.74209515]
[1749040530383,0.004,104880.0,104870.0,0.71039515]
[1749040530862,0.40380721,104880.0,104870.0,0.71039515]
[1749040531625,0.004,104880.0,104870.0,0.71039515]
[1749040531850,0.40380721,104880.0,104870.0,0.71039515]
[1749040532317,0.41940721,104880.0,104870.0,0.86987515]
[1749040533259,0.41940721,104880.0,104870.0,0.71039515]
[1749040533493,0.0312,104860.0,104840.0,0.3]
[1749040533754,0.41590721,104850.0,104840.0,0.3]
[1749040533983,0.41590721,104850.0,104840.0,0.5553343]
[1749040534418,0.43130721,104860.0,104840.0,0.8037343]
[1749040534651,0.43130721,104860.0,104850.0,0.11039515]